bitfinex/quotes_BTCUSD_20250727
["timestamp","ask_amount","ask_price","bid_price","bid_amount"]
[1753624495748,0.57365536,118280.0,118270.0,0.13735998]
[1753624496666,0.57365536,118280.0,118270.0,0.16177998]
[1753624498068,0.57659536,118280.0,118270.0,0.12888]
[1753624498290,0.60839536,118280.0,118270.0,0.12888]
[1753624499974,0.73723536,118280.0,118270.0,0.12888]
[1753624500637,0.72143536,118280.0,118270.0,0.12888]
[1753624501059,0.71849536,118280.0,118270.0,0.12888]
[1753624502071,0.34948972,118280.0,118270.0,0.12888]
[1753624502276,0.71849536,118280.0,118270.0,0.13745103]
[1753624504186,0.70249536,118280.0,118270.0,0.13745103]
[1753624504929,0.30892972,118280.0,118270.0,0.16187103]
[1753624505165,0.30892972,118280.0,118270.0,0.16699103]
[1753624505649,0.30892972,118280.0,118270.0,0.33609562]
[1753624506314,0.30892972,118280.0,118270.0,0.35139562]
[1753624506796,0.30047528,118280.0,118270.0,0.72040126]
[1753624507042,0.30047528,118280.0,118270.0,0.18229103]
[1753624507288,0.30047528,118280.0,118270.0,0.55129667]
[1753624507538,0.30047528,118280.0,118270.0,0.35139562]
[1753624509955,0.30047528,118280.0,118270.0,0.16699103]
[1753624511036,0.30047528,118280.0,118270.0,0.15842]
[1753624511303,0.66948092,118280.0,118270.0,0.1533]
[1753624511524,0.30047528,118280.0,118270.0,0.1533]
[1753624513296,0.66948092,118280.0,118270.0,0.1533]
[1753624516710,0.66948092,118280.0,118270.0,0.15537]
[1753624516937,0.66948092,118280.0,118270.0,0.15842]
[1753624517372,0.66948092,118280.0,118270.0,0.33596084]
[1753624518210,0.66948092,118280.0,118270.0,0.16685625]
[1753624519048,0.66948092,118280.0,118270.0,0.33596084]
[1753624521812,0.30047528,118280.0,118270.0,0.16685625]
[1753624522691,0.30047528,118280.0,118270.0,0.18285625]
[1753624524367,0.30047528,118280.0,118270.0,0.35196084]
[1753624527063,0.30047528,118280.0,118270.0,0.36696084]
[1753624527256,0.29848528,118280.0,118270.0,0.36696084]
[1753624527499,0.29848528,118280.0,118270.0,0.35852459]
[1753624529587,0.30653979,118280.0,118270.0,0.72753023]
[1753624529796,0.31499373,118280.0,118270.0,0.72753023]
[1753624530009,0.33190225,118280.0,118270.0,0.73598545]
[1753624530221,0.33190225,118280.0,118270.0,0.72753023]
[1753624530436,0.02591724,118280.0,118270.0,0.74444046]
[1753624530650,0.02591716,118280.0,118270.0,0.74444046]
[1753624531138,0.02591716,118280.0,118270.0,0.7528954]
[1753624531554,0.02591716,118280.0,118270.0,0.73598545]
[1753624531774,0.02591716,118280.0,118270.0,0.7444406]
[1753624531957,0.02591716,118280.0,118270.0,0.75289561]
[1753624532188,0.03437146,118280.0,118270.0,0.75289561]
[1753624532920,0.03437146,118280.0,118270.0,0.76135069]
[1753624533129,0.03437146,118280.0,118270.0,0.76980563]
[1753624533344,0.02591716,118280.0,118270.0,0.76980563]
[1753624533553,0.02591716,118280.0,118270.0,0.76135069]
[1753624534190,0.02591716,118280.0,118270.0,0.76135041]
[1753624534191,0.01746294,118280.0,118270.0,0.76135041]
[1753624534398,0.02591716,118280.0,118270.0,0.76135041]
[1753624534616,0.02591716,118280.0,118270.0,0.75289547]
[1753624535035,0.01746294,118280.0,118270.0,0.75289547]
[1753624535247,0.02591716,118280.0,118270.0,0.76135034]
[1753624535467,0.02591716,118280.0,118270.0,0.76135041]
[1753624536453,0.02591716,118280.0,118270.0,0.75289547]
[1753624537535,0.02591716,118280.0,118270.0,0.76135041]
[1753624537902,0.01746294,118280.0,118270.0,0.76980528]
[1753624538111,0.02591716,118280.0,118270.0,0.76135041]
[1753624538307,0.01746294,118280.0,118270.0,0.76980528]
[1753624538529,0.02591716,118280.0,118270.0,0.76135041]
[1753624539593,0.02591716,118280.0,118270.0,0.75289547]
[1753624540035,0.03437146,118280.0,118270.0,0.75289547]
[1753624540456,0.03437146,118280.0,118270.0,0.74444046]
[1753624540664,0.03437146,118280.0,118270.0,0.76135041]
[1753624541328,0.03437146,118280.0,118270.0,0.75289547]
[1753624541528,0.03437146,118280.0,118270.0,0.76135041]
[1753624541677,0.03437146,118280.0,118270.0,0.39234477]
[1753624541884,0.03437146,118280.0,118270.0,0.76135041]
[1753624542283,0.03437146,118280.0,118270.0,0.75289547]
[1753624543173,0.03437146,118280.0,118270.0,0.76135041]
[1753624543482,0.02591716,118280.0,118270.0,0.76135041]
[1753624544848,0.02591716,118280.0,118270.0,0.75289547]
[1753624545359,0.02591716,118280.0,118270.0,0.76135041]
[1753624545742,0.02591716,118280.0,118270.0,0.75289547]
[1753624545945,0.03437153,118280.0,118270.0,0.75289547]
[1753624546191,0.02591716,118280.0,118270.0,0.75289547]
[1753624546606,0.02591716,118280.0,118270.0,0.76135041]
[1753624546831,0.02591716,118280.0,118270.0,0.75289547]
[1753624547299,0.03437153,118280.0,118270.0,0.75289547]
[1753624547738,0.03437146,118280.0,118270.0,0.75289547]
[1753624548151,0.03437146,118280.0,118270.0,0.74444046]
[1753624548364,0.0428259,118280.0,118270.0,0.74444046]
[1753624548743,0.0428259,118280.0,118270.0,0.73598538]
[1753624549135,0.04282583,118280.0,118270.0,0.73598538]
[1753624549346,0.04282583,118280.0,118270.0,0.74444046]
[1753624549542,0.03437146,118280.0,118270.0,0.75289547]
[1753624550382,0.03437146,118280.0,118270.0,0.74444046]
[1753624550743,0.03437146,118280.0,118270.0,0.75289547]
[1753624551910,0.03437146,118280.0,118270.0,0.74444046]
[1753624552080,0.03437146,118280.0,118270.0,0.75289547]
[1753624552307,0.03437146,118280.0,118270.0,0.74444046]
[1753624553089,0.03437146,118280.0,118270.0,0.75289547]
[1753624553294,0.03437146,118280.0,118270.0,0.74444046]
[1753624553498,0.03437146,118280.0,118270.0,0.75289547]
[1753624554137,0.03437146,118280.0,118270.0,0.74444046]
[1753624554455,0.04282583,118280.0,118270.0,0.75289547]
[1753624554658,0.04282583,118280.0,118270.0,0.74444046]
[1753624554887,0.03437146,118280.0,118270.0,0.75289547]
[1753624555492,0.03437146,118280.0,118270.0,0.76135041]
[1753624555700,0.03437146,118280.0,118270.0,0.75289547]
[1753624556129,0.04282583,118280.0,118270.0,0.74444046]
[1753624556470,0.04282583,118280.0,118270.0,0.73598538]
[1753624556692,0.04282583,118280.0,118270.0,0.74444046]
[1753624557264,0.03437146,118280.0,118270.0,0.75289547]
[1753624557471,0.02591716,118280.0,118270.0,0.75289547]
[1753624557687,0.02591716,118280.0,118270.0,0.74444046]
[1753624558042,0.02591716,118280.0,118270.0,0.75289547]
[1753624558492,0.03437153,118280.0,118270.0,0.75289547]
[1753624558732,0.02591716,118280.0,118270.0,0.76135041]
[1753624558944,0.02591716,118280.0,118270.0,0.75289547]
[1753624559169,0.03437146,118280.0,118270.0,0.38388983]
[1753624559379,0.03437146,118280.0,118270.0,0.74444046]
[1753624559918,0.03437146,118280.0,118270.0,0.7528954]
[1753624561002,0.02591716,118280.0,118270.0,0.7528954]
[1753624561283,0.02591716,118280.0,118270.0,0.76135027]
[1753624561500,0.02591716,118280.0,118270.0,0.7528954]
[1753624562625,0.02591716,118280.0,118270.0,0.74444046]
[1753624562847,0.03437146,118280.0,118270.0,0.38388983]
[1753624563069,0.03437146,118280.0,118270.0,0.76135041]
[1753624563293,0.01746294,118280.0,118270.0,0.76980528]
[1753624563527,0.02591716,118280.0,118270.0,0.76135041]
[1753624563766,0.02591716,118280.0,118270.0,0.76980528]
[1753624564002,0.02591709,118280.0,118270.0,0.76980528]
[1753624564431,0.02591709,118280.0,118270.0,0.76135041]
[1753624564644,0.02591709,118280.0,118270.0,0.76980528]
[1753624565269,0.02591709,118280.0,118270.0,0.38388983]
[1753624565479,0.02591709,118280.0,118270.0,0.75289547]
[1753624565679,0.03437139,118280.0,118270.0,0.76135041]
[1753624565873,0.03437131,118280.0,118270.0,0.76135041]
[1753624566354,0.03437131,118280.0,118270.0,0.76980528]
[1753624566807,0.03437131,118280.0,118270.0,0.76135041]
[1753624568106,0.03441131,118280.0,118270.0,0.75289547]
[1753624568536,0.00059499,118280.0,118270.0,0.85428243]
[1753624568771,0.00059499,118280.0,118270.0,1.22328807]
[1753624569490,0.00059499,118280.0,118270.0,0.85428243]
[1753624570182,0.00059499,118280.0,118270.0,1.22328807]
[1753624570622,0.00059499,118280.0,118270.0,0.85428243]
[1753624570845,0.00059499,118280.0,118270.0,1.56328807]
[1753624571113,0.00059499,118280.0,118270.0,3.61163007]
[1753624571327,1e-08,118280.0,118270.0,3.61163007]
[1753624571771,1e-08,118280.0,118270.0,3.61604807]
[1753624572541,1e-08,118280.0,118270.0,3.63549709]
[1753624572740,1e-08,118280.0,118270.0,3.63749709]
[1753624576002,1e-08,118280.0,118270.0,3.64339709]
[1753624577565,1e-08,118280.0,118270.0,4.47330109]
[1753624579193,1e-08,118280.0,118270.0,4.19133209]
[1753624581534,1e-08,118280.0,118270.0,6.38905309]
[1753624581755,1e-08,118280.0,118270.0,5.98852109]
[1753624581952,1e-08,118280.0,118270.0,5.87240009]
[1753624582166,1e-08,118280.0,118270.0,5.56225309]
[1753624582537,1e-08,118280.0,118270.0,5.22601409]
[1753624582754,1e-08,118280.0,118270.0,4.99937409]
[1753624583300,1e-08,118280.0,118270.0,4.68328209]
[1753624583688,1e-08,118280.0,118270.0,4.58763209]
[1753624584525,1e-08,118280.0,118270.0,4.97591709]
[1753624585303,1e-08,118280.0,118270.0,5.02664709]
[1753624585537,1e-08,118280.0,118270.0,5.25520509]
[1753624585746,1e-08,118280.0,118270.0,5.07127809]
[1753624586368,1e-08,118280.0,118270.0,4.63245709]
[1753624586596,1e-08,118280.0,118270.0,4.67474509]
[1753624587688,1e-08,118280.0,118270.0,4.54286609]
[1753624588787,1e-08,118280.0,118270.0,4.54709409]
[1753624588995,1e-08,118280.0,118270.0,4.42673309]
[1753624589597,1e-08,118280.0,118270.0,1.84878509]
[1753624589798,1e-08,118280.0,118270.0,5.19948409]
[1753624590405,1e-08,118280.0,118270.0,4.74535609]
[1753624590614,1e-08,118280.0,118270.0,1.84878509]
[1753624590831,1e-08,118280.0,118270.0,4.02689009]
[1753624591886,1e-08,118280.0,118270.0,4.05886709]
[1753624592400,1e-08,118280.0,118270.0,3.51104109]
[1753624592864,1e-08,118280.0,118270.0,4.03785209]
[1753624593428,1e-08,118280.0,118270.0,3.61107709]
[1753624593832,1e-08,118280.0,118270.0,3.49074409]
[1753624594255,1e-08,118280.0,118270.0,3.41298609]
[1753624594931,1e-08,118280.0,118270.0,3.93967909]
[1753624595280,1e-08,118280.0,118270.0,3.83767909]
[1753624595522,1e-08,118280.0,118270.0,3.86253865]
[1753624596299,1e-08,118280.0,118270.0,3.58141865]
[1753624596518,1e-08,118280.0,118270.0,1.86922665]
[1753624596731,1e-08,118280.0,118270.0,4.12341865]
[1753624596970,1e-08,118280.0,118270.0,4.02341865]
[1753624597377,1e-08,118280.0,118270.0,3.84833965]
[1753624598026,1e-08,118280.0,118270.0,3.95005465]
[1753624598965,1e-08,118280.0,118270.0,3.95002865]
[1753624599403,1e-08,118280.0,118270.0,3.60746265]
[1753624599626,1e-08,118280.0,118270.0,3.59516265]
[1753624599834,1e-08,118280.0,118270.0,3.60343269]
[1753624600042,1e-08,118280.0,118270.0,3.60340269]
[1753624601094,1e-08,118280.0,118270.0,3.95382269]
[1753624601299,1e-08,118280.0,118270.0,3.62582269]
[1753624601525,1e-08,118280.0,118270.0,3.51601169]
[1753624602037,1e-08,118280.0,118270.0,3.60622269]
[1753624603121,1e-08,118280.0,118270.0,3.94634769]
[1753624604181,1e-08,118280.0,118270.0,4.05988569]
[1753624604421,1e-08,118280.0,118270.0,3.88862769]
[1753624605051,1e-08,118280.0,118270.0,5.10874069]
[1753624606144,1e-08,118280.0,118270.0,5.43206169]
[1753624606355,1e-08,118280.0,118270.0,5.37942169]
[1753624607480,1e-08,118280.0,118270.0,5.05576569]
[1753624608133,1e-08,118280.0,118270.0,5.04111169]
[1753624608561,1e-08,118280.0,118270.0,5.37688369]
[1753624609382,1e-08,118280.0,118270.0,1.87749669]
[1753624609581,1e-08,118280.0,118270.0,5.31818969]
[1753624610185,1e-08,118280.0,118270.0,5.16937169]
[1753624610694,1e-08,118280.0,118270.0,5.16514669]
[1753624610908,1e-08,118280.0,118270.0,5.12964869]
[1753624611504,1e-08,118280.0,118270.0,5.45766569]
[1753624611962,1e-08,118280.0,118270.0,5.43665869]
[1753624612186,1e-08,118280.0,118270.0,5.25857769]
[1753624612398,1e-08,118280.0,118270.0,3.74015269]
[1753624613767,1e-08,118280.0,118270.0,3.82671469]
[1753624614224,1e-08,118280.0,118270.0,3.39984269]
[1753624614458,1e-08,118280.0,118270.0,1.78081005]
[1753624614716,1e-08,118280.0,118270.0,1.41180441]
[1753624614949,0.00205001,118280.0,118270.0,2.16995005]
[1753624615393,0.00205001,118280.0,118270.0,2.11922005]
[1753624615837,0.00205001,118280.0,118270.0,2.39636705]
[1753624616041,0.00205001,118280.0,118270.0,2.28482205]
[1753624616225,0.00205001,118280.0,118270.0,1.91616405]
[1753624616895,0.00205001,118280.0,118270.0,2.13995505]
[1753624618000,0.00205001,118280.0,118270.0,2.33992405]
[1753624618236,0.00205001,118280.0,118270.0,2.08611105]
[1753624618910,0.00205001,118280.0,118270.0,1.45776105]
[1753624619134,0.00205001,118280.0,118270.0,2.07506005]
[1753624620067,0.00205001,118280.0,118270.0,2.01328305]
[1753624620964,1e-08,118280.0,118270.0,2.01328305]
[1753624621170,1e-08,118280.0,118270.0,2.19786005]
[1753624621693,1e-08,118280.0,118270.0,2.56686569]
[1753624624846,1e-08,118280.0,118270.0,1.82676669]
[1753624625094,1e-08,118280.0,118270.0,2.91969269]
[1753624625256,1e-08,118280.0,118270.0,2.71669269]
[1753624625891,1e-08,118280.0,118270.0,2.27477669]
[1753624626092,1e-08,118280.0,118270.0,2.77283969]
[1753624626696,1e-08,118280.0,118270.0,2.74606169]
[1753624626908,1e-08,118280.0,118270.0,2.44123069]
[1753624630289,1e-08,118280.0,118270.0,2.28725869]
[1753624642722,1e-08,118280.0,118270.0,1.62376669]
[1753624642942,1e-08,118280.0,118270.0,3.17272669]
[1753624647980,1e-08,118280.0,118270.0,3.78147869]
[1753624650273,1e-08,118280.0,118270.0,3.36176669]
[1753624650496,1e-08,118280.0,118270.0,3.16876069]
[1753624653176,1e-08,118280.0,118270.0,1.62376669]
[1753624653399,1e-08,118280.0,118270.0,3.94573269]
[1753624653864,1e-08,118280.0,118270.0,3.89203269]
[1753624654773,1e-08,118280.0,118270.0,3.54218269]
[1753624655651,1e-08,118280.0,118270.0,3.59290269]
[1753624656082,1e-08,118280.0,118270.0,3.96677269]
[1753624656952,1e-08,118280.0,118270.0,3.94544269]
[1753624657160,1e-08,118280.0,118270.0,3.68474069]
[1753624657360,1e-08,118280.0,118270.0,3.65161109]
[1753624657813,1e-08,118280.0,118270.0,3.31162109]
[1753624658418,1e-08,118280.0,118270.0,3.33704987]
[1753624659882,1e-08,118280.0,118270.0,3.23320487]
[1753624662212,1e-08,118280.0,118270.0,3.24176163]
[1753624662434,1e-08,118280.0,118270.0,3.08262363]
[1753624662647,1e-08,118280.0,118270.0,2.81570363]
[1753624663064,1e-08,118280.0,118270.0,2.59744963]
[1753624663291,1e-08,118280.0,118270.0,2.52048463]
[1753624674914,1e-08,118280.0,118270.0,1.67534263]
[1753624675375,1e-08,118280.0,118270.0,3.97997363]
[1753624675580,1e-08,118280.0,118270.0,3.63997363]
[1753624680384,1e-08,118280.0,118270.0,3.28381963]
[1753624682309,1e-08,118280.0,118270.0,3.48681963]
[1753624683192,1e-08,118280.0,118270.0,3.46743863]
[1753624689410,1e-08,118280.0,118270.0,3.05644263]
[1753624690990,1e-08,118280.0,118270.0,1.87834263]
[1753624691202,1e-08,118280.0,118270.0,3.11412563]
[1753624692072,1e-08,118280.0,118270.0,3.09558763]
[1753624693542,1e-08,118280.0,118270.0,3.05482063]
[1753624694579,1e-08,118280.0,118270.0,2.92012063]
[1753624702397,1e-08,118290.0,118280.0,3.06080826]
[1753624702605,1e-08,118290.0,118280.0,3.27569556]
[1753624702836,1e-08,118290.0,118280.0,3.30263556]
[1753624703051,1e-08,118290.0,118280.0,1.22464056]
[1753624703237,1e-08,118290.0,118280.0,3.36167456]
[1753624703564,1e-08,118290.0,118280.0,3.31167456]
[1753624703947,1e-08,118290.0,118280.0,3.31267456]
[1753624704571,1e-08,118290.0,118280.0,3.31367456]
[1753624709208,1e-08,118290.0,118280.0,3.36439456]
[1753624710418,1e-08,118290.0,118280.0,3.36339456]
[1753624710861,1e-08,118290.0,118280.0,3.36239456]
[1753624711703,1e-08,118290.0,118280.0,3.36439456]
[1753624712234,1e-08,118290.0,118280.0,3.37029456]
[1753624712376,1e-08,118290.0,118280.0,3.37229456]
[1753624715043,1e-08,118290.0,118280.0,4.61123856]
[1753624715501,1e-08,118290.0,118280.0,4.30968356]
[1753624717783,1e-08,118290.0,118280.0,4.29328356]
[1753624718400,1e-08,118290.0,118280.0,4.30828356]
[1753624719327,1e-08,118290.0,118280.0,4.02330956]
[1753624720375,1e-08,118290.0,118280.0,3.99996156]
[1753624721074,1e-08,118290.0,118280.0,3.65996156]
[1753624725793,1e-08,118290.0,118280.0,1.28386056]
[1753624725995,1e-08,118290.0,118280.0,4.06730156]
[1753624726219,1e-08,118290.0,118280.0,3.72730156]
[1753624728055,1e-08,118290.0,118280.0,3.75267711]
[1753624730938,1e-08,118290.0,118280.0,3.70219111]
[1753624735068,1e-08,118290.0,118280.0,4.04219111]
[1753624736883,1e-08,118290.0,118280.0,3.70204111]
[1753624737501,1e-08,118290.0,118280.0,3.68207411]
[1753624743235,1e-08,118290.0,118280.0,3.64419311]
[1753624743450,1e-08,118290.0,118280.0,1.30923611]
[1753624743679,1e-08,118290.0,118280.0,3.64260511]
[1753624748527,0.001078,118320.0,118300.0,0.20341631]
[1753624748725,0.00112653,118320.0,118310.0,0.77835968]
[1753624748987,0.00112653,118320.0,118310.0,0.77624659]
[1753624750385,0.00412653,118320.0,118310.0,0.77624659]
[1753624750631,0.00438653,118320.0,118310.0,0.77624659]
[1753624750866,0.00338653,118320.0,118310.0,0.77624659]
[1753624751069,0.00538653,118320.0,118310.0,0.77624659]
[1753624751510,0.02258653,118320.0,118310.0,0.77624659]
[1753624751731,0.03848653,118320.0,118310.0,0.77624659]
[1753624753261,0.03848653,118320.0,118310.0,0.40724095]
[1753624753489,0.03848653,118320.0,118310.0,0.77624659]
[1753624754767,0.03848653,118320.0,118310.0,0.40724095]
[1753624754973,0.03848653,118320.0,118310.0,0.77624659]
[1753624757246,0.03622653,118320.0,118310.0,0.77624659]
[1753624759655,0.03622653,118320.0,118310.0,0.79981659]
[1753624761982,0.03634653,118320.0,118310.0,0.79981659]
[1753624762402,0.03634653,118320.0,118310.0,0.80299659]
[1753624767108,0.03634653,118320.0,118310.0,0.80505659]
[1753624768968,0.02002653,118320.0,118310.0,0.80505659]
[1753624769193,0.00412653,118320.0,118310.0,0.80505659]
[1753624777653,0.00412653,118320.0,118310.0,0.43605095]
[1753624777858,0.00412653,118320.0,118310.0,0.80505659]
[1753624783286,0.00412653,118320.0,118310.0,0.43605095]
[1753624783504,0.00412653,118320.0,118310.0,0.80505659]
[1753624783925,0.00412653,118320.0,118310.0,0.43605095]
[1753624784262,0.00412653,118320.0,118310.0,0.80505659]
[1753624785141,0.00412653,118320.0,118310.0,0.43605095]
[1753624785365,0.00412653,118320.0,118310.0,0.80505659]
[1753624792307,0.00412653,118320.0,118310.0,0.83102544]
[1753624794354,0.00412653,118320.0,118310.0,0.84662544]
[1753624800373,0.00412653,118320.0,118310.0,0.33235585]
[1753624800573,0.39015454,118320.0,118310.0,0.4445163]
[1753624800790,0.56613667,118320.0,118310.0,0.13719615]
[1753624801008,0.95909382,118320.0,118310.0,0.32329626]
[1753624801252,0.79006069,118320.0,118310.0,0.33174855]
[1753624801478,0.42105505,118320.0,118310.0,0.33174855]
[1753624801678,0.42105505,118320.0,118310.0,0.33174848]
[1753624801885,0.42105505,118320.0,118310.0,0.33174855]
[1753624802132,0.59008818,118320.0,118310.0,0.34679626]
[1753624803406,0.42105469,118320.0,118310.0,0.35524848]
[1753624803610,0.4295062,118320.0,118310.0,0.35524848]
[1753624803819,0.04359768,118320.0,118310.0,0.35524848]
[1753624804000,0.41260339,118320.0,118310.0,0.37508257]
[1753624804234,0.39860577,118320.0,118310.0,0.37508264]
[1753624804440,0.39860577,118320.0,118310.0,0.37718271]
[1753624804657,0.00412653,118320.0,118310.0,0.47011195]
[1753624804845,0.00412653,118320.0,118310.0,0.87856946]
[1753624805231,0.00412653,118320.0,118310.0,0.50956382]
[1753624805701,0.00412653,118320.0,118310.0,0.87856946]
[1753624806465,0.01257754,118320.0,118310.0,0.87856946]
[1753624806672,0.00412653,118320.0,118310.0,0.87856946]
[1753624816069,0.00412653,118320.0,118310.0,0.50956382]
[1753624816415,0.00412653,118320.0,118310.0,0.87856946]
[1753624825329,0.00412653,118320.0,118310.0,0.50956382]
[1753624825537,0.00412653,118320.0,118310.0,0.87856946]
[1753624827111,0.00406737,118320.0,118310.0,0.87856946]
[1753624830614,0.00406737,118320.0,118310.0,0.50956382]
[1753624830830,0.00418737,118320.0,118310.0,0.84546946]
[1753624831253,0.00418737,118320.0,118310.0,0.84752946]
[1753624831454,0.00406737,118320.0,118310.0,0.86332946]
[1753624831889,0.00406737,118320.0,118310.0,0.87942946]
[1753624843150,0.00406737,118320.0,118310.0,0.51042382]
[1753624843381,0.00406737,118320.0,118310.0,0.87942946]
[1753624844783,0.00406737,118320.0,118310.0,0.51042382]
[1753624844991,0.00406737,118320.0,118310.0,0.87942946]
[1753624852452,0.00406737,118320.0,118310.0,0.85346061]
[1753624855177,0.00406737,118320.0,118310.0,0.87859862]
[1753624861836,0.00406737,118320.0,118310.0,0.50959298]
[1753624862073,0.01251845,118320.0,118310.0,0.86249862]
[1753624862903,0.0209696,118320.0,118310.0,0.84559453]
[1753624863154,0.0209696,118320.0,118310.0,0.48504076]
[1753624863531,0.0209696,118320.0,118310.0,0.47658889]
[1753624863911,0.0209696,118320.0,118310.0,0.46813695]
[1753624864119,0.0209696,118320.0,118310.0,0.47658889]
[1753624864322,0.00406737,118320.0,118310.0,0.48504076]
[1753624864702,0.01251838,118320.0,118310.0,0.48504076]
[1753624865172,0.02096953,118320.0,118310.0,0.48504076]
[1753624865395,0.00406737,118320.0,118310.0,0.49298882]
[1753624865632,0.01251838,118320.0,118310.0,0.49298882]
[1753624866544,0.01251838,118320.0,118310.0,0.86199446]
[1753624866758,0.02096953,118320.0,118310.0,0.86199446]
[1753624867478,0.01251838,118320.0,118310.0,0.86199446]
[1753624868860,0.00406737,118320.0,118310.0,0.86199446]
[1753624869064,0.01251838,118320.0,118310.0,0.86199446]
[1753624869278,0.01251845,118320.0,118310.0,0.86199446]
[1753624869507,0.01251838,118320.0,118310.0,0.86199446]
[1753624869714,0.02096946,118320.0,118310.0,0.86199446]
[1753624869911,0.01251838,118320.0,118310.0,0.86199446]
[1753624871013,0.01251838,118320.0,118310.0,0.49298882]
[1753624871240,0.02096953,118320.0,118310.0,0.86199446]
[1753624871459,0.02096953,118320.0,118310.0,0.49298882]
[1753624871671,0.02096953,118320.0,118310.0,0.86199446]
[1753624872101,0.02096953,118320.0,118310.0,0.85549446]
[1753624872633,0.02096953,118320.0,118310.0,0.48648889]
[1753624873081,0.02096953,118320.0,118310.0,0.49494076]
[1753624873308,0.02096953,118320.0,118310.0,0.48648889]
[1753624873931,0.02942082,118320.0,118310.0,0.47803695]
[1753624874122,0.02096953,118320.0,118310.0,0.49494076]
[1753624874536,0.01251838,118320.0,118310.0,0.49494076]
[1753624874746,0.01251838,118320.0,118310.0,0.8639464]
[1753624875079,0.02096946,118320.0,118310.0,0.8639464]
[1753624875616,0.00406737,118320.0,118310.0,0.8639464]
[1753624876039,0.01251845,118320.0,118310.0,0.8639464]
[1753624876344,0.00406737,118320.0,118310.0,0.8639464]
[1753624876753,0.01251845,118320.0,118310.0,0.8639464]
[1753624876893,0.00406737,118320.0,118310.0,0.8639464]
[1753624877127,0.01251845,118320.0,118310.0,0.8639464]
[1753624878492,0.01251845,118320.0,118310.0,0.49494076]
[1753624878706,0.01251845,118320.0,118310.0,0.8639464]
[1753624880475,0.00406737,118320.0,118310.0,0.8639464]
[1753624881192,0.01251845,118320.0,118310.0,0.8639464]
[1753624881779,0.01251845,118320.0,118310.0,0.49494076]
[1753624882009,0.01251845,118320.0,118310.0,0.8639464]
[1753624883207,0.01251838,118320.0,118310.0,0.8639464]
[1753624883632,0.02096953,118320.0,118310.0,0.8639464]
[1753624883850,0.01251838,118320.0,118310.0,0.8639464]
[1753624884052,0.02096953,118320.0,118310.0,0.8639464]
[1753624884240,0.02096946,118320.0,118310.0,0.8639464]
[1753624884992,0.02096946,118320.0,118310.0,0.49494076]
[1753624885310,0.02942061,118320.0,118310.0,0.49494076]
[1753624885999,0.02096946,118320.0,118310.0,0.49494076]
[1753624889802,0.01251838,118320.0,118310.0,0.49494076]
[1753624890345,0.02096946,118320.0,118310.0,0.49494076]
[1753624890655,0.02942068,118320.0,118310.0,0.49494076]
[1753624891261,0.02096946,118320.0,118310.0,0.49494076]
[1753624892626,0.02942068,118320.0,118310.0,0.49494076]
[1753624892923,0.03787212,118320.0,118310.0,0.46958501]
[1753624893128,0.41544941,118320.0,118310.0,0.45306501]
[1753624893425,0.55912909,118320.0,118310.0,0.42675272]
[1753624894718,0.19012345,118320.0,118310.0,0.42675272]
[1753624894943,0.55912909,118320.0,118310.0,0.43520509]
[1753624895373,0.56758074,118320.0,118310.0,0.42675272]
[1753624899810,0.56758074,118320.0,118310.0,0.43520509]
[1753624900202,0.56758074,118320.0,118310.0,0.42675272]
[1753624900400,0.56758074,118320.0,118310.0,0.43520509]
[1753624900705,0.56758074,118320.0,118310.0,0.33934542]
[1753624900964,0.58278074,118320.0,118310.0,0.33934542]
[1753624901163,0.58719831,118320.0,118310.0,0.33934542]
[1753624901986,0.20299267,118320.0,118310.0,0.33934542]
[1753624902199,0.01690408,118310.0,118300.0,0.23493478]
[1753624902405,0.38590944,118310.0,118300.0,0.43413194]
[1753624902612,0.02535588,118310.0,118300.0,0.425679]
[1753624902816,0.02535588,118310.0,118300.0,0.44258502]
[1753624903023,0.39436152,118310.0,118300.0,0.45103789]
[1753624903227,0.0169038,118310.0,118300.0,0.45103789]
[1753624903595,0.0169038,118310.0,118300.0,0.45949068]
[1753624903811,0.02535588,118310.0,118300.0,0.46808864]
[1753624904023,0.02635588,118310.0,118300.0,0.4849943]
[1753624904213,0.00945179,118310.0,118300.0,0.49344702]
[1753624904412,0.00945179,118310.0,118300.0,0.50964623]
[1753624904849,0.01790373,118310.0,118300.0,0.50119365]
[1753624905440,0.01790373,118310.0,118300.0,0.492741]
[1753624906589,0.02635574,118310.0,118300.0,0.492741]
[1753624906807,0.02635574,118310.0,118300.0,0.48428828]
[1753624907235,0.01790373,118310.0,118300.0,0.50119365]
[1753624907459,0.02635588,118310.0,118300.0,0.49274136]
[1753624907727,0.02635581,118310.0,118300.0,0.49274136]
[1753624907919,0.02635581,118310.0,118300.0,0.48428857]
[1753624908369,0.01790373,118310.0,118300.0,0.50119401]
[1753624908646,0.01790373,118310.0,118300.0,0.50119408]
[1753624909041,0.01790373,118310.0,118300.0,0.50964673]
[1753624909270,0.01790373,118310.0,118300.0,0.50119408]
[1753624909492,0.01790373,118310.0,118300.0,0.50964673]
[1753624909702,0.01790373,118310.0,118300.0,0.50119408]
[1753624909703,0.02635574,118310.0,118300.0,0.50119408]
[1753624909934,0.02635574,118310.0,118300.0,0.49274136]
[1753624910166,0.02635574,118310.0,118300.0,0.50119408]
[1753624910386,0.02635574,118310.0,118300.0,0.50964673]
[1753624911062,0.02635574,118310.0,118300.0,0.50119408]
[1753624911740,0.02635574,118310.0,118300.0,0.50964673]
[1753624912201,0.01790373,118310.0,118300.0,0.50964673]
[1753624912699,0.01790373,118310.0,118300.0,0.50119365]
[1753624913360,0.00945179,118310.0,118300.0,0.50119365]
[1753624913819,0.00945179,118310.0,118300.0,0.50964623]
[1753624915579,0.01790373,118310.0,118300.0,0.50119365]
[1753624915809,0.01790373,118310.0,118300.0,0.50964623]
[1753624916503,0.00945179,118310.0,118300.0,0.50964623]
[1753624916739,0.01790366,118310.0,118300.0,0.50964623]
[1753624917387,0.01790366,118310.0,118300.0,0.48414261]
[1753624918286,0.01790366,118310.0,118300.0,0.47569003]
[1753624918512,0.02635567,118310.0,118300.0,0.47569003]
[1753624918760,0.01790366,118310.0,118300.0,0.47569003]
[1753624918943,0.01790366,118310.0,118300.0,0.48414261]
[1753624919176,0.01790366,118310.0,118300.0,0.47569003]
[1753624919407,0.0263556,118310.0,118300.0,0.47569003]
[1753624920522,0.01790366,118310.0,118300.0,0.48414261]
[1753624921302,0.02635574,118310.0,118300.0,0.46723738]
[1753624921537,0.02635574,118310.0,118300.0,0.45878495]
[1753624921769,0.02635574,118310.0,118300.0,0.46723774]
[1753624922575,0.02635574,118310.0,118300.0,0.45878495]
[1753624922788,0.02635574,118310.0,118300.0,0.46723767]
[1753624923341,0.02635574,118310.0,118300.0,0.46723774]
[1753624923554,0.02635567,118310.0,118300.0,0.50157338]
[1753624923697,0.03480782,118310.0,118300.0,0.49312066]
[1753624923909,0.02635567,118310.0,118300.0,0.49312066]
[1753624924623,0.02635567,118310.0,118300.0,0.50157338]